fUST/lending_fUST_20250827
["ID","MTS","AMOUNT","RATE_DAILY","PERIOD"]
[381577277,1756289436833,-480.0,0.00022091,2]
[381577278,1756289436842,-480.0,0.00022091,2]
[381577279,1756289436852,-480.0,0.00022091,2]
[381577280,1756289436862,-480.0,0.00022091,2]
[381577281,1756289436872,-480.0,0.00022091,2]
[381577282,1756289436881,-480.0,0.00022091,2]
[381577283,1756289436891,-480.0,0.00022091,2]
[381577284,1756289436900,-573.23886878,0.00022091,2]
[381577285,1756289436909,-480.0,0.00022091,2]
[381577286,1756289436920,-480.0,0.00022091,2]
[381577287,1756289436930,-480.0,0.00022091,2]
[381577288,1756289436939,-480.0,0.00022091,2]
[381577289,1756289436948,-889.28,0.00022091,2]
[381577290,1756289436958,-480.0,0.00022091,2]
[381577291,1756289436967,-480.0,0.00022091,2]
[381577292,1756289436976,-480.0,0.00022091,2]
[381577293,1756289436986,-480.0,0.00022091,2]
[381577294,1756289436995,-2423.54,0.00022091,2]
[381577295,1756289437005,-480.0,0.00022091,2]
[381577296,1756289437015,-480.0,0.00022091,2]
[381577297,1756289437024,-480.0,0.00022091,2]
[381577298,1756289437033,-480.0,0.00022091,2]
[381577299,1756289437043,-1010.26,0.00022091,2]
[381577300,1756289437053,-815.03,0.00022091,2]
[381577301,1756289437065,-1044.63,0.00022091,2]
[381577302,1756289437075,-480.0,0.00022091,2]
[381577303,1756289437085,-480.0,0.00022091,2]
[381577304,1756289437094,-480.0,0.00022091,2]
[381577305,1756289437103,-480.0,0.00022091,2]
[381577306,1756289437113,-480.0,0.00022091,2]
[381577307,1756289437122,-730.74,0.00022091,2]
[381577308,1756289437132,-742.5,0.00022091,2]
[381577309,1756289437143,-591.85,0.00022091,2]
[381577310,1756289437153,-480.0,0.00022091,2]
[381577311,1756289437163,-480.0,0.00022091,2]
[381577312,1756289437172,-480.0,0.00022091,2]
[381577313,1756289437182,-480.0,0.00022092,2]
[381577314,1756289437191,-480.0,0.00022092,2]
[381577315,1756289437201,-821.76,0.00022092,2]
[381577316,1756289437210,-480.0,0.00022092,2]
[381577317,1756289437220,-480.0,0.00022092,2]
[381577318,1756289437231,-480.0,0.00022092,2]
[381577319,1756289437241,-480.0,0.00022092,2]
[381577320,1756289437251,-480.0,0.00022092,2]
[381577321,1756289437261,-493.22,0.00022092,2]
[381577322,1756289437271,-480.0,0.00022092,2]
[381577323,1756289437280,-480.0,0.00022092,2]
[381577324,1756289437290,-480.0,0.00022092,2]
[381577325,1756289437300,-480.0,0.00022092,2]
[381577326,1756289437310,-440.66007537,0.00022092,2]
[381577327,1756289437320,-480.0,0.00022092,2]
[381577328,1756289437330,-480.0,0.00022092,2]
[381577329,1756289437339,-400.0,0.00022092,2]
[381577330,1756289437349,-480.0,0.00022092,2]
[381577331,1756289437359,-480.0,0.00022092,2]
[381577332,1756289437369,-480.0,0.00022092,2]
[381577333,1756289437379,-480.0,0.00022092,2]
[381577334,1756289437390,-244.81498467,0.00022092,2]
[381577335,1756289437400,-480.0,0.00022092,2]
[381577336,1756289437409,-480.0,0.00022092,2]
[381577337,1756289437419,-480.0,0.00022092,2]
[381577338,1756289437428,-480.0,0.00022092,2]
[381577339,1756289437438,-480.0,0.00022092,2]
[381577340,1756289437447,-480.0,0.00022092,2]
[381577341,1756289437457,-480.0,0.00022092,2]
[381577342,1756289437467,-480.0,0.00022092,2]
[381577343,1756289437477,-480.0,0.00022092,2]
[381577344,1756289437486,-433.38001414,0.00022092,2]
[381577345,1756289437495,-480.0,0.00022092,2]
[381577346,1756289437505,-480.0,0.00022092,2]
[381577347,1756289437515,-678.6,0.00022092,2]
[381577348,1756289437524,-983.64,0.00022092,2]
[381577349,1756289437534,-480.0,0.00022092,2]
[381577350,1756289437544,-877.75,0.00022092,2]
[381577351,1756289437554,-480.0,0.00022092,2]
[381577352,1756289437563,-480.0,0.00022092,2]
[381577353,1756289437573,-480.0,0.00022092,2]
[381577354,1756289437582,-480.0,0.00022092,2]
[381577355,1756289437592,-480.0,0.00022092,2]
[381577356,1756289437602,-480.0,0.00022092,2]
[381577357,1756289437611,-480.0,0.00022092,2]
[381577358,1756289437621,-480.0,0.00022092,2]
[381577359,1756289437630,-480.0,0.00022092,2]
[381577360,1756289437639,-480.0,0.00022092,2]
[381577361,1756289437649,-480.0,0.00022092,2]
[381577362,1756289437659,-480.0,0.00022092,2]
[381577363,1756289437669,-480.0,0.00022092,2]
[381577364,1756289437678,-480.0,0.00022092,2]
[381577365,1756289437688,-480.0,0.00022092,2]
[381577366,1756289437698,-480.0,0.00022092,2]
[381577367,1756289437708,-500.0,0.00022092,2]
[381577368,1756289437717,-480.0,0.00022092,2]
[381577369,1756289437727,-480.0,0.00022092,2]
[381577370,1756289437736,-480.0,0.00022092,2]
[381577371,1756289437747,-456.63505691,0.00022092,2]
[381577372,1756289437756,-480.0,0.00022092,2]
[381577373,1756289437766,-480.0,0.00022092,2]
[381577374,1756289437776,-480.0,0.00022092,2]
[381577375,1756289437785,-480.0,0.00022092,2]
[381577376,1756289437796,-569.38,0.00022092,2]
[381577377,1756289437806,-480.0,0.00022092,2]
[381577379,1756289437816,-481.43,0.00022092,2]
[381577380,1756289437826,-480.0,0.00022092,2]
[381577382,1756289437841,-480.0,0.00022092,2]
[381577383,1756289437856,-480.0,0.00022092,2]
[381577384,1756289437866,-480.0,0.00022092,2]
[381577385,1756289437875,-540.61,0.00022092,2]
[381577386,1756289437886,-480.0,0.00022092,2]
[381577387,1756289437895,-480.0,0.00022092,2]
[381577388,1756289437905,-480.0,0.00022092,2]
[381577389,1756289437915,-480.0,0.00022092,2]
[381577390,1756289437925,-480.0,0.00022092,2]
[381577391,1756289437935,-480.0,0.00022092,2]
[381577392,1756289437945,-480.0,0.00022092,2]
[381577393,1756289437955,-480.0,0.00022092,2]
[381577394,1756289437965,-480.0,0.00022092,2]
[381577396,1756289437976,-824.02,0.00022092,2]
[381577397,1756289437986,-543.91,0.00022092,2]
[381577398,1756289437995,-480.0,0.00022092,2]
[381577399,1756289438006,-480.0,0.00022092,2]
[381577400,1756289438016,-480.0,0.00022092,2]
[381577402,1756289438025,-374.8796452,0.00022092,2]
[381577404,1756289438035,-480.0,0.00022092,2]
[381577405,1756289438045,-480.0,0.00022092,2]
[381577406,1756289438055,-480.0,0.00022092,2]
[381577407,1756289438070,-480.0,0.00022092,2]
[381577408,1756289438080,-480.0,0.00022092,2]
[381577409,1756289438090,-632.67,0.00022092,2]
[381577410,1756289438099,-480.0,0.00022092,2]
[381577411,1756289438111,-480.0,0.00022092,2]
[381577412,1756289438120,-480.0,0.00022092,2]
[381577413,1756289438129,-480.0,0.00022092,2]
[381577414,1756289438139,-480.0,0.00022092,2]
[381577415,1756289438150,-480.0,0.00022092,2]
[381577416,1756289438160,-480.0,0.00022092,2]
[381577417,1756289438170,-480.0,0.00022092,2]
[381577418,1756289438180,-480.0,0.00022092,2]
[381577419,1756289438189,-641.67,0.00022092,2]
[381577420,1756289438199,-555.18,0.00022093,2]
[381577421,1756289438208,-480.0,0.00022093,2]
[381577422,1756289438217,-480.0,0.00022093,2]
[381577423,1756289438227,-1798.27,0.00022093,2]
[381577424,1756289438238,-480.0,0.00022094,2]
[381577425,1756289438249,-919.9,0.00022094,2]
[381577426,1756289438259,-480.0,0.00022094,2]
[381577427,1756289438269,-480.0,0.00022094,2]
[381577428,1756289438278,-175.92970017,0.00022094,2]
[381577429,1756289438287,-1565.55,0.00022094,2]
[381577430,1756289438297,-1487.63,0.00022094,2]
[381577431,1756289438307,-3564.79,0.00022094,2]
[381577432,1756289438316,-1678.79,0.00022094,2]
[381577433,1756289438326,-480.0,0.00022094,2]
[381577434,1756289438336,-677.24,0.00022094,2]
[381577435,1756289438345,-3001.08,0.00022094,2]
[381577436,1756289438355,-2123.55,0.00022094,2]
[381577437,1756289438365,-570.64,0.00022095,2]
[381577438,1756289438375,-480.0,0.00022095,2]
[381577439,1756289438386,-480.0,0.00022095,2]
[381577440,1756289438395,-480.0,0.00022095,2]
[381577441,1756289438405,-480.0,0.00022095,2]
[381577442,1756289438415,-699.87,0.00022095,2]
[381577443,1756289438424,-589.43,0.00022095,2]
[381577444,1756289438434,-480.0,0.00022095,2]
[381577445,1756289438444,-480.0,0.00022095,2]
[381577446,1756289438453,-480.0,0.00022095,2]
[381577447,1756289438463,-480.0,0.00022095,2]
[381577448,1756289438473,-480.0,0.00022095,2]
[381577449,1756289438483,-480.0,0.00022095,2]
[381577450,1756289438493,-480.0,0.00022095,2]
[381577451,1756289438502,-480.0,0.00022095,2]
[381577452,1756289438512,-480.0,0.00022095,2]
[381577453,1756289438521,-480.0,0.00022095,2]
[381577454,1756289438531,-480.0,0.00022095,2]
[381577455,1756289438540,-1296.08,0.00022095,2]
[381577456,1756289438550,-472.87557471,0.00022095,2]
[381577457,1756289438559,-480.0,0.00022095,2]
[381577458,1756289438569,-480.0,0.00022095,2]
[381577459,1756289438578,-998.74,0.00022095,2]
[381577460,1756289438588,-480.0,0.00022095,2]
[381577461,1756289438597,-480.0,0.00022095,2]
[381577462,1756289438607,-480.0,0.00022095,2]
[381577463,1756289438616,-1110.68,0.00022095,2]
[381577464,1756289438625,-480.0,0.00022095,2]
[381577465,1756289438635,-480.0,0.00022095,2]
[381577466,1756289438644,-480.0,0.00022095,2]
[381577467,1756289438654,-660.23,0.00022095,2]
[381577468,1756289438665,-480.0,0.00022095,2]
[381577469,1756289438674,-480.0,0.00022095,2]
[381577470,1756289438683,-480.0,0.00022095,2]
[381577471,1756289438693,-480.0,0.00022095,2]
[381577472,1756289438703,-480.0,0.00022095,2]
[381577473,1756289438712,-760.63,0.00022095,2]
[381577474,1756289438721,-524.94,0.00022095,2]
[381577475,1756289438731,-480.0,0.00022095,2]
[381577476,1756289438741,-581.06,0.00022095,2]
[381577477,1756289438799,-703.2,0.00022095,2]
[381577478,1756289438808,-541.56,0.00022095,2]
[381577479,1756289438817,-480.0,0.00022095,2]
[381577480,1756289438826,-480.0,0.00022095,2]
[381577481,1756289438835,-506.07,0.00022095,2]
[381577482,1756289438845,-480.0,0.00022095,2]
[381577483,1756289438854,-855.47,0.00022095,2]
[381577484,1756289438863,-552.43,0.00022095,2]
[381577485,1756289438872,-676.34,0.00022095,2]
[381577486,1756289438882,-500.0,0.00022095,2]
[381577487,1756289438892,-480.0,0.00022095,2]
[381577488,1756289438901,-480.0,0.00022095,2]
[381577489,1756289438910,-555.54315417,0.00022095,2]
[381577490,1756289438919,-1905.17,0.00022095,2]
[381577491,1756289438928,-732.81,0.00022095,2]
[381577492,1756289438937,-480.0,0.00022095,2]
[381577493,1756289438948,-485.54,0.00022095,2]
[381577494,1756289438957,-522.71,0.00022095,2]
[381577495,1756289438967,-1210.7,0.00022095,2]
[381577496,1756289438976,-616.37,0.00022095,2]
[381577497,1756289438986,-487.65,0.00022095,2]
[381577498,1756289438996,-480.0,0.00022096,2]
[381577499,1756289439006,-969.77,0.00022096,2]
[381577500,1756289439015,-480.0,0.00022096,2]
[381577501,1756289439024,-480.0,0.00022096,2]
[381577502,1756289439033,-480.0,0.00022096,2]
[381577503,1756289439042,-480.0,0.00022096,2]
[381577504,1756289439053,-531.26,0.00022096,2]
[381577505,1756289439064,-480.0,0.00022096,2]
[381577506,1756289439076,-480.0,0.00022096,2]
[381577507,1756289439085,-480.0,0.00022096,2]
[381577508,1756289439094,-576.98,0.00022096,2]
[381577509,1756289439103,-609.12,0.00022096,2]
[381577510,1756289439113,-480.0,0.00022096,2]
[381577511,1756289439123,-302.58650679,0.00022096,2]
[381577520,1756289440012,-200.3423055,0.00022083,2]
[381577521,1756289440022,-500.0,0.00022083,2]
[381577522,1756289440031,-185.6590313,0.00022083,2]
[381577523,1756289440041,-500.0,0.00022083,2]
[381577524,1756289440053,-345.30686679,0.00022083,2]
[381577525,1756289440066,-500.0,0.00022083,2]
[381577526,1756289440075,-175.74383222,0.00022083,2]
[381577527,1756289440084,-500.0,0.00022083,2]
[381577528,1756289440093,-500.0,0.00022083,2]
[381577529,1756289440102,-224.07554339,0.00022083,2]
[381577530,1756289440113,-555.15670911,0.00022083,2]
[381577531,1756289440121,-555.15670911,0.00022083,2]
[381577532,1756289440130,-559.85,0.0002209,2]
[381577533,1756289440139,-177.41349321,0.00022096,2]
[381577534,1756289440149,-480.0,0.00022096,2]
[381577535,1756289440158,-480.0,0.00022096,2]
[381577536,1756289440167,-480.0,0.00022096,2]
[381577537,1756289440176,-480.0,0.00022096,2]
[381577538,1756289440185,-480.0,0.00022096,2]
[381577539,1756289440194,-480.0,0.00022096,2]
[381577540,1756289440203,-480.0,0.00022096,2]
[381577541,1756289440212,-480.0,0.00022096,2]
[381577542,1756289440221,-480.0,0.00022096,2]
[381577543,1756289440230,-615.06,0.00022096,2]
[381577544,1756289440240,-480.0,0.00022096,2]
[381577545,1756289440249,-602.76347263,0.00022096,2]
[381577546,1756289440258,-811.56,0.00022096,2]
[381577547,1756289440267,-196.71760109,0.00022096,2]
[381577548,1756289440277,-480.0,0.00022096,2]
[381577549,1756289440287,-480.0,0.00022096,2]
[381577550,1756289440295,-739.22,0.00022096,2]
[381577551,1756289440307,-480.0,0.00022096,2]
[381577552,1756289440316,-480.0,0.00022096,2]
[381577553,1756289440325,-480.0,0.00022096,2]
[381577554,1756289440334,-480.0,0.00022096,2]
[381577555,1756289440344,-480.0,0.00022096,2]
[381577556,1756289440353,-480.0,0.00022096,2]
[381577557,1756289440362,-480.0,0.00022096,2]
[381577558,1756289440371,-773.72,0.00022096,2]
[381577559,1756289440380,-480.0,0.00022096,2]
[381577560,1756289440389,-480.0,0.00022096,2]
[381577561,1756289440399,-181.43707771,0.00022096,2]
[381577562,1756289440407,-480.0,0.00022096,2]
[381577563,1756289440416,-480.0,0.00022096,2]
[381577564,1756289440425,-480.0,0.00022096,2]
[381577565,1756289440434,-480.0,0.00022096,2]
[381577566,1756289440443,-480.0,0.00022096,2]
[381577567,1756289440452,-519.3,0.00022096,2]
[381577568,1756289440461,-480.0,0.00022096,2]
[381577569,1756289440470,-480.0,0.00022096,2]
[381577570,1756289440479,-480.0,0.00022096,2]
[381577571,1756289440491,-480.0,0.00022096,2]
[381577572,1756289440501,-480.0,0.00022096,2]
[381577573,1756289440511,-480.0,0.00022096,2]
[381577574,1756289440520,-569.32,0.00022096,2]
[381577575,1756289440529,-480.0,0.00022096,2]
[381577576,1756289440539,-480.0,0.00022096,2]
[381577577,1756289440547,-480.0,0.00022096,2]
[381577578,1756289440559,-480.0,0.00022096,2]
[381577579,1756289440568,-480.0,0.00022096,2]
[381577580,1756289440577,-480.0,0.00022096,2]
[381577581,1756289440587,-480.0,0.00022096,2]
[381577582,1756289440596,-480.0,0.00022096,2]
[381577583,1756289440606,-480.0,0.00022096,2]
[381577584,1756289440615,-480.0,0.00022096,2]
[381577585,1756289440624,-480.0,0.00022096,2]
[381577586,1756289440634,-480.0,0.00022096,2]
[381577587,1756289440643,-480.0,0.00022096,2]
[381577588,1756289440652,-480.0,0.00022096,2]
[381577589,1756289440662,-480.0,0.00022096,2]
[381577591,1756289440671,-480.0,0.00022096,2]
[381577593,1756289440680,-521.63,0.00022096,2]
[381577594,1756289440689,-480.0,0.00022096,2]
[381577595,1756289440698,-480.0,0.00022096,2]
[381577596,1756289440707,-575.26,0.00022096,2]
[381577598,1756289440717,-150.0,0.00022096,2]
[381577600,1756289440726,-480.0,0.00022096,2]
[381577602,1756289440736,-480.0,0.00022096,2]
[381577604,1756289440746,-480.0,0.00022096,2]
[381577606,1756289440755,-483.58089724,0.00022096,2]
[381577608,1756289440764,-480.0,0.00022096,2]
[381577610,1756289440774,-423.49713783,0.00022096,2]
[381577612,1756289440783,-778.94,0.00022096,2]
[381577614,1756289440792,-873.99,0.00022096,2]
[381577616,1756289440801,-480.0,0.00022096,2]
[381577618,1756289440810,-837.99,0.00022096,2]
[381577620,1756289440820,-480.0,0.00022096,2]
[381577622,1756289440829,-480.0,0.00022096,2]
[381577624,1756289440838,-480.0,0.00022096,2]
[381577626,1756289440847,-494.87,0.00022096,2]
[381577628,1756289440857,-678.91,0.00022096,2]
[381577630,1756289440866,-157.26262287,0.00022096,2]
[381577632,1756289440876,-480.0,0.00022096,2]
[381577634,1756289440885,-600.0,0.00022096,2]
[381577636,1756289440895,-480.0,0.00022096,2]
[381577638,1756289440904,-508.08,0.00022096,2]
[381577640,1756289440914,-480.0,0.00022096,2]
[381577643,1756289440924,-484.67,0.00022096,2]
[381577645,1756289440933,-480.0,0.00022096,2]
[381577647,1756289440943,-480.0,0.00022096,2]
[381577649,1756289440952,-480.0,0.00022096,2]
[381577651,1756289440961,-480.0,0.00022096,2]
[381577653,1756289440971,-480.0,0.00022096,2]
[381577655,1756289440980,-539.91,0.00022096,2]
[381577657,1756289440989,-480.0,0.00022096,2]
[381577659,1756289440999,-480.0,0.00022096,2]
[381577661,1756289441008,-328.04481692,0.00022096,2]
[381577663,1756289441018,-480.0,0.00022096,2]
[381577665,1756289441027,-480.0,0.00022096,2]
[381577667,1756289441036,-613.6,0.00022096,2]
[381577669,1756289441047,-480.0,0.00022096,2]
[381577670,1756289441057,-925.94,0.00022096,2]
[381577672,1756289441071,-537.77,0.00022096,2]
[381577674,1756289441080,-533.76,0.00022096,2]
[381577676,1756289441089,-482.40957526,0.00022096,2]
[381577678,1756289441098,-562.98,0.00022096,2]
[381577680,1756289441108,-480.0,0.00022096,2]
[381577682,1756289441118,-480.0,0.00022096,2]
[381577684,1756289441127,-480.0,0.00022096,2]
[381577686,1756289441137,-536.26,0.00022096,2]
[381577688,1756289441148,-416.26625217,0.00022096,2]
[381577690,1756289441157,-480.0,0.00022096,2]
[381577692,1756289441166,-480.0,0.00022096,2]
[381577694,1756289441176,-480.0,0.00022096,2]
[381577696,1756289441185,-480.0,0.00022096,2]
[381577698,1756289441195,-480.0,0.00022096,2]
[381577700,1756289441205,-480.0,0.00022096,2]
[381577702,1756289441214,-480.0,0.00022096,2]
[381577704,1756289441223,-480.0,0.00022096,2]
[381577706,1756289441232,-480.0,0.00022096,2]
[381577708,1756289441241,-337.33962517,0.00022096,2]
[381577710,1756289441251,-480.0,0.00022096,2]
[381577712,1756289441260,-480.0,0.00022096,2]
[381577714,1756289441270,-480.0,0.00022096,2]
[381577716,1756289441279,-480.0,0.00022096,2]
[381577718,1756289441289,-480.0,0.00022096,2]
[381577720,1756289441298,-592.44,0.00022096,2]
[381577722,1756289441309,-592.79,0.00022096,2]
[381577724,1756289441322,-575.25,0.00022096,2]
[381577726,1756289441332,-480.0,0.00022096,2]
[381577728,1756289441342,-582.79,0.00022096,2]
[381577730,1756289441353,-480.0,0.00022096,2]
[381577732,1756289441362,-480.0,0.00022096,2]
[381577733,1756289441371,-480.0,0.00022096,2]
[381577734,1756289441381,-480.0,0.00022096,2]
[381577735,1756289441391,-594.5,0.00022096,2]
[381577736,1756289441400,-480.0,0.00022096,2]
[381577737,1756289441410,-602.33,0.00022096,2]
[381577738,1756289441419,-5976.77,0.000221,7]
[381577739,1756289441429,-1254.55664192,0.00022202,2]
[381577740,1756289441439,-1157.7,0.00022269,2]
[381577741,1756289441448,-1000.0,0.00022324,2]
[381577742,1756289441458,-1000.0,0.00022324,2]
[381577743,1756289441467,-567.0,0.00022324,2]
[381577744,1756289441476,-151.0,0.00022324,2]
[381577745,1756289441486,-232.9102796,0.00022324,2]
[381577746,1756289441495,-151.0,0.00022324,2]
[381577747,1756289441505,-151.0,0.00022324,2]
[381577748,1756289441515,-151.0,0.00022324,2]
[381577749,1756289441524,-151.0,0.00022324,2]
[381577750,1756289441534,-151.0,0.00022324,2]
[381577751,1756289441544,-201.93286099,0.00022324,2]
[381577752,1756289441555,-151.0,0.00022324,2]
[381577753,1756289441565,-151.0,0.00022324,2]
[381577754,1756289441574,-151.0,0.00022324,2]
[381577755,1756289441584,-151.0,0.00022324,2]
[381577756,1756289441594,-151.0,0.00022324,2]
[381577757,1756289441604,-151.0,0.00022324,2]
[381577758,1756289441614,-151.0,0.00022324,2]
[381577759,1756289441624,-151.0,0.00022324,2]
[381577760,1756289441633,-151.0,0.00022324,2]
[381577761,1756289441643,-151.0,0.00022324,2]
[381577762,1756289441653,-151.0,0.00022324,2]
[381577763,1756289441663,-151.0,0.00022324,2]
[381577764,1756289441673,-151.0,0.00022324,2]
[381577765,1756289441683,-300.0,0.00022324,2]
[381577767,1756289441693,-274.44593104,0.00022324,2]
[381577769,1756289441703,-300.0,0.00022324,2]
[381577771,1756289441713,-151.0,0.00022324,2]
[381577773,1756289441722,-300.0,0.00022324,2]
[381577775,1756289441733,-300.0,0.00022324,2]
[381577777,1756289441743,-151.0,0.00022324,2]
[381577779,1756289441753,-300.0,0.00022324,2]
[381577781,1756289441763,-151.0,0.00022324,2]
[381577783,1756289441773,-300.0,0.00022324,2]
[381577785,1756289441782,-151.0,0.00022324,2]
[381577787,1756289441792,-300.0,0.00022324,2]
[381577789,1756289441802,-300.0,0.00022324,2]
[381577791,1756289441812,-300.0,0.00022324,2]
[381577793,1756289441821,-500.0,0.00022324,2]
[381577795,1756289441831,-500.0,0.00022324,2]
[381577797,1756289441840,-300.0,0.00022324,2]
[381577800,1756289441851,-500.0,0.00022324,2]
[381577802,1756289441861,-300.0,0.00022324,2]
[381577804,1756289441871,-500.0,0.00022324,2]
[381577806,1756289441880,-251.36292349,0.00022324,2]
[381577808,1756289441889,-500.0,0.00022324,2]
[381577810,1756289441899,-500.0,0.00022324,2]
[381577812,1756289441909,-500.0,0.00022324,2]
[381577814,1756289441919,-500.0,0.00022324,2]
[381577816,1756289441928,-500.0,0.00022324,2]
[381577818,1756289441940,-500.0,0.00022324,2]
[381577820,1756289441955,-500.0,0.00022324,2]
[381577822,1756289441965,-500.0,0.00022324,2]
[381577824,1756289441974,-8853.82062255,0.00022335,2]
[381577826,1756289441984,-480.0,0.00022335,2]
[381577828,1756289441993,-480.0,0.00022335,2]
[381577830,1756289442003,-480.0,0.00022335,2]
[381577832,1756289442013,-983.33,0.00022335,2]
[381577834,1756289442023,-1557.24,0.00022335,2]
[381577836,1756289442033,-820.53,0.00022335,2]
[381577838,1756289442044,-480.0,0.00022335,2]
[381577840,1756289442055,-513.07,0.00022335,2]
[381577842,1756289442068,-480.0,0.00022335,2]
[381577845,1756289442078,-480.0,0.00022335,2]
[381577846,1756289442089,-502.54,0.00022335,2]
[381577848,1756289442099,-480.0,0.00022335,2]
[381577850,1756289442110,-480.0,0.00022335,2]
[381577852,1756289442120,-480.0,0.00022335,2]
[381577854,1756289442130,-480.0,0.00022335,2]
[381577856,1756289442139,-588.27,0.00022335,2]
[381577858,1756289442149,-480.0,0.00022335,2]
[381577860,1756289442160,-669.17,0.00022335,2]
[381577862,1756289442169,-480.0,0.00022335,2]
[381577864,1756289442179,-480.0,0.00022335,2]
[381577866,1756289442189,-480.0,0.00022335,2]
[381577868,1756289442199,-594.95,0.00022335,2]
[381577870,1756289442209,-480.0,0.00022335,2]
[381577872,1756289442219,-480.0,0.00022335,2]
[381577875,1756289442229,-710.48,0.00022335,2]
[381577877,1756289442239,-480.0,0.00022335,2]
[381577879,1756289442248,-480.0,0.00022335,2]
[381577881,1756289442258,-480.0,0.00022335,2]
[381577883,1756289442268,-480.0,0.00022335,2]
[381577885,1756289442278,-560.13,0.00022335,2]
[381577887,1756289442287,-1415.64,0.00022335,2]
[381577889,1756289442297,-480.0,0.00022335,2]
[381577891,1756289442308,-480.0,0.00022335,2]
[381577893,1756289442317,-480.0,0.00022335,2]
[381577895,1756289442327,-480.0,0.00022335,2]
[381577897,1756289442337,-480.0,0.00022335,2]
[381577899,1756289442348,-630.78,0.00022335,2]
[381577901,1756289442357,-480.0,0.00022335,2]
[381577903,1756289442367,-578.01,0.00022335,2]
[381577905,1756289442378,-815.75,0.00022335,2]
[381577907,1756289442388,-743.87,0.00022335,2]
[381577909,1756289442397,-480.0,0.00022335,2]
[381577911,1756289442407,-480.0,0.00022335,2]
[381577913,1756289442416,-480.0,0.00022335,2]
[381577915,1756289442426,-349.40172221,0.00022358,2]
[381577917,1756289442435,-480.0,0.00022358,2]
[381577919,1756289442445,-480.0,0.00022358,2]
[381577921,1756289442455,-611.26,0.00022362,2]
[381577923,1756289442464,-480.0,0.00022362,2]
[381577925,1756289442474,-731.92,0.00022362,2]
[381577927,1756289442483,-1069.75,0.00022362,2]
[381577929,1756289442493,-1626.41,0.00022362,2]
[381577931,1756289442503,-669.83,0.00022362,2]
[381577933,1756289442513,-480.0,0.00022362,2]
[381577935,1756289442523,-480.0,0.00022362,2]
[381577937,1756289442532,-679.13,0.00022364,2]
[381577939,1756289442542,-765.23,0.00022364,2]
[381577941,1756289442551,-480.0,0.00022364,2]
[381577943,1756289442563,-480.0,0.00022364,2]
[381577945,1756289442572,-480.0,0.00022364,2]
[381577947,1756289442582,-1872.79,0.00022364,2]
[381577949,1756289442591,-3317.95,0.00022364,2]
[381577951,1756289442601,-572.11,0.00022364,2]
[381577953,1756289442611,-480.0,0.00022364,2]
[381577955,1756289442620,-946.94,0.00022364,2]